bitfinex/quotes_BTCUSD_20251113
["timestamp","ask_amount","ask_price","bid_price","bid_amount"]
[1763027151844,0.27344822,103030.0,103020.0,0.30686707]
[1763027154273,0.46756643,103030.0,103020.0,0.28786706]
[1763027154489,0.46756643,103030.0,103020.0,0.30686707]
[1763027154710,0.46756643,103030.0,103020.0,0.26404706]
[1763027154923,0.46756643,103030.0,103020.0,0.28304707]
[1763027155177,0.46756643,103030.0,103020.0,0.30686707]
[1763027155394,0.27344822,103030.0,103020.0,0.28786706]
[1763027155598,0.27344822,103030.0,103020.0,0.30686707]
[1763027156938,0.46756643,103030.0,103020.0,0.30686707]
[1763027158463,0.21302324,103030.0,103020.0,0.28786706]
[1763027158677,0.46756643,103030.0,103020.0,0.30686707]
[1763027159103,0.27344822,103030.0,103020.0,0.28786706]
[1763027159315,0.27344822,103030.0,103020.0,0.30686707]
[1763027160380,0.46756643,103030.0,103020.0,0.28786706]
[1763027160584,0.27344822,103030.0,103020.0,0.30686707]
[1763027160802,0.01890503,103030.0,103020.0,0.30686707]
[1763027161021,0.46683897,103030.0,103020.0,0.30686707]
[1763027161205,0.22496697,103030.0,103020.0,0.30686707]
[1763027161694,0.44893394,103030.0,103020.0,0.30686707]
[1763027162738,0.22496697,103030.0,103020.0,0.30686707]
[1763027162954,0.001,103030.0,103020.0,0.30686707]
[1763027168347,0.2554772,103030.0,103020.0,0.30686707]
[1763027169764,0.001,103030.0,103020.0,0.30686707]
[1763027169993,0.001,103030.0,103020.0,0.56134427]
[1763027170329,4.647e-05,103040.0,103030.0,0.19411821]
[1763027170604,4.647e-05,103040.0,103030.0,0.26320822]
[1763027171469,0.00104647,103040.0,103030.0,0.26320822]
[1763027171887,0.00204647,103040.0,103030.0,0.26320822]
[1763027172142,0.00204647,103040.0,103030.0,0.24420821]
[1763027172361,0.00204647,103040.0,103030.0,0.26320822]
[1763027172591,0.00104647,103040.0,103030.0,0.26320822]
[1763027173211,4.647e-05,103040.0,103030.0,0.26320822]
[1763027176019,4.647e-05,103040.0,103030.0,0.24420821]
[1763027176225,4.647e-05,103040.0,103030.0,0.26320822]
[1763027182017,4.647e-05,103040.0,103030.0,0.24420821]
[1763027182226,4.647e-05,103040.0,103030.0,0.26320822]
[1763027188887,0.29855854,103040.0,103030.0,0.26320822]
[1763027191783,4.647e-05,103040.0,103030.0,0.54272028]
[1763027191989,4.647e-05,103040.0,103030.0,0.56172029]
[1763027192200,4.647e-05,103040.0,103030.0,0.24420821]
[1763027192400,4.647e-05,103040.0,103030.0,0.26320822]
[1763027193477,4.647e-05,103040.0,103030.0,0.56172029]
[1763027194725,0.19411821,103030.0,103020.0,0.01161]
[1763027194949,0.51714584,103040.0,103020.0,0.05385]
[1763027195158,0.29851207,103030.0,103020.0,0.30789707]
[1763027195357,0.29851207,103030.0,103020.0,0.33699784]
[1763027196000,0.29851207,103030.0,103020.0,0.28889706]
[1763027196211,0.85907665,103040.0,103030.0,0.01900001]
[1763027196412,0.85907665,103040.0,103030.0,0.19411821]
[1763027196586,0.85907665,103040.0,103020.0,0.29140707]
[1763027196797,0.85907665,103040.0,103030.0,0.21311822]
[1763027196998,0.85907665,103040.0,103030.0,0.01900001]
[1763027197210,0.66497728,103040.0,103030.0,0.21060821]
[1763027197421,4.647e-05,103040.0,103030.0,0.25402822]
[1763027198096,0.29855854,103040.0,103030.0,0.25402822]
[1763027198322,4.647e-05,103040.0,103030.0,0.25402822]
[1763027203730,4.647e-05,103040.0,103030.0,0.26563822]
[1763027208793,4.647e-05,103040.0,103030.0,0.24663821]
[1763027209005,4.647e-05,103040.0,103030.0,0.26563822]
[1763027209428,4.647e-05,103040.0,103030.0,0.56415029]
[1763027210297,4.647e-05,103040.0,103030.0,0.26563822]
[1763027211160,4.647e-05,103040.0,103030.0,0.58863822]
[1763027213044,4.647e-05,103040.0,103030.0,0.51711821]
[1763027213249,0.29855854,103040.0,103030.0,0.24121822]
[1763027213661,0.49265791,103040.0,103030.0,0.22221821]
[1763027213861,0.49265791,103040.0,103030.0,0.24121822]
[1763027214200,0.49265791,103040.0,103030.0,0.04710001]
[1763027214403,0.49265791,103040.0,103030.0,0.03061001]
[1763027214605,0.49265791,103040.0,103030.0,0.01161]
[1763027214808,0.19411821,103030.0,103020.0,0.29140663]
[1763027215022,0.49263028,103030.0,103020.0,0.29140663]
[1763027215216,0.19411821,103030.0,103020.0,0.30789663]
[1763027215421,0.49263028,103030.0,103020.0,0.26698707]
[1763027216889,0.29851207,103030.0,103020.0,0.26698707]
[1763027217149,0.49263028,103030.0,103020.0,0.26698707]
[1763027217394,4.647e-05,103040.0,103030.0,0.21311822]
[1763027217605,0.19414584,103040.0,103030.0,0.26563822]
[1763027217812,0.49265791,103040.0,103030.0,0.26563822]
[1763027218236,0.29855854,103040.0,103030.0,0.26563822]
[1763027218495,0.29855854,103040.0,103030.0,0.24663821]
[1763027218725,0.29855854,103040.0,103030.0,0.26563822]
[1763027219160,4.647e-05,103040.0,103030.0,0.26563822]
[1763027219377,0.29855854,103040.0,103030.0,0.26563822]
[1763027220415,4.647e-05,103040.0,103030.0,0.26563822]
[1763027222476,4.647e-05,103040.0,103030.0,0.56415029]
[1763027223312,4.647e-05,103040.0,103030.0,0.88715029]
[1763027223534,0.49251886,103090.0,103070.0,0.19404288]
[1763027223745,0.31646965,103090.0,103080.0,0.30671406]
[1763027223950,0.31646965,103090.0,103080.0,0.26352405]
[1763027224156,0.01795758,103090.0,103080.0,0.26352405]
[1763027224365,0.31646965,103090.0,103080.0,0.28252406]
[1763027224821,0.31646965,103090.0,103080.0,0.30514406]
[1763027225024,0.01795758,103090.0,103080.0,0.30514406]
[1763027225450,0.01895758,103090.0,103080.0,0.30514406]
[1763027225663,0.6390941,103090.0,103080.0,0.26693406]
[1763027225879,0.44608887,103090.0,103080.0,0.30570406]
[1763027226062,0.6400941,103090.0,103080.0,0.28308406]
[1763027226343,0.21396281,103090.0,103080.0,0.28308406]
[1763027226789,0.01995758,103090.0,103080.0,0.28308406]
[1763027227012,0.01995774,103090.0,103080.0,0.30570406]
[1763027227227,0.44608903,103090.0,103080.0,0.30570406]
[1763027227899,0.64009426,103090.0,103080.0,0.30570406]
[1763027228354,0.62213652,103090.0,103080.0,0.25526406]
[1763027228567,0.66555526,103090.0,103080.0,0.04224]
[1763027231034,0.4937182,103090.0,103080.0,0.04224]
[1763027233034,0.4937182,103090.0,103080.0,0.06124001]
[1763027233847,0.4937182,103090.0,103080.0,0.04224]
[1763027234236,0.74801243,103090.0,103080.0,0.04224]
[1763027234824,0.4937182,103090.0,103080.0,0.04224]
[1763027237090,0.4937182,103090.0,103080.0,0.06124001]
[1763027238056,0.4937182,103090.0,103080.0,0.04224]
[1763027238273,0.4937182,103090.0,103080.0,0.06124001]
[1763027238701,0.4937182,103090.0,103080.0,0.04224]
[1763027238903,0.4937182,103090.0,103080.0,0.06124001]
[1763027239107,0.4937182,103090.0,103080.0,0.04224]
[1763027239334,0.4937182,103090.0,103080.0,0.06124001]
[1763027239539,0.4937182,103090.0,103080.0,0.04224]
[1763027239739,0.4937182,103090.0,103080.0,0.06124001]
[1763027240528,0.4937182,103090.0,103080.0,0.04224]
[1763027242071,0.4937182,103090.0,103080.0,0.06124001]
[1763027242272,0.4937182,103090.0,103080.0,0.04224]
[1763027242665,0.4937182,103090.0,103080.0,0.06124001]
[1763027242915,0.4937182,103090.0,103080.0,0.07124001]
[1763027243334,0.4937182,103090.0,103080.0,0.05224]
[1763027243547,1.09518965,103090.0,103080.0,0.01]
[1763027244575,1.09318965,103090.0,103080.0,0.01]
[1763027244993,1.92952629,103090.0,103080.0,0.01]
[1763027245883,1.93152629,103090.0,103080.0,0.01]
[1763027246218,2.17402629,103090.0,103080.0,0.01]
[1763027246423,0.51702405,103080.0,103070.0,0.00046549]
[1763027246625,1.95634863,103080.0,103070.0,0.00046549]
[1763027247394,1.95734863,103080.0,103070.0,0.00046549]
[1763027247595,2.00076737,103080.0,103070.0,0.00046549]
[1763027247800,2.00176737,103080.0,103070.0,0.00046549]
[1763027249377,0.65884227,103080.0,103070.0,0.00046549]
[1763027249545,2.00176737,103080.0,103070.0,0.00046549]
[1763027250854,2.04400737,103080.0,103070.0,0.00046549]
[1763027251260,2.07313639,103080.0,103070.0,0.00046549]
[1763027251468,0.19409937,103040.0,103030.0,0.01145]
[1763027251685,0.64174107,103040.0,103030.0,0.04237543]
[1763027251895,0.86556192,103040.0,103030.0,0.04237543]
[1763027252104,0.64174107,103040.0,103030.0,0.06137544]
[1763027252283,0.64174107,103040.0,103030.0,0.04449267]
[1763027252517,0.90898066,103040.0,103030.0,0.04449267]
[1763027252726,1.67684269,103040.0,103030.0,0.00425267]
[1763027252938,1.99984269,103040.0,103030.0,0.00325267]
[1763027253144,2.04208269,103040.0,103030.0,0.00225267]
[1763027253355,2.07122096,103040.0,103030.0,0.00225267]
[1763027254438,2.07222096,103040.0,103030.0,0.00225267]
[1763027255628,2.07322096,103040.0,103030.0,0.00225267]
[1763027256044,0.72829586,103040.0,103030.0,0.00225267]
[1763027256288,2.07122096,103040.0,103030.0,0.00225267]
[1763027256494,2.07222096,103040.0,103030.0,0.00225267]
[1763027260789,2.02998096,103040.0,103030.0,0.00225267]
[1763027261003,1.97582148,103040.0,103030.0,0.00225267]
[1763027261158,1.97582148,103040.0,103030.0,0.02125268]
[1763027261351,1.97582148,103040.0,103030.0,0.00225267]
[1763027263011,1.97582148,103040.0,103030.0,0.02125268]
[1763027263231,2.07222096,103040.0,103030.0,0.02125268]
[1763027263439,1.03829808,103040.0,103030.0,0.00225267]
[1763027263638,0.90998066,103040.0,103030.0,0.00225267]
[1763027263892,0.23851811,103040.0,103030.0,0.02125268]
[1763027264110,0.68615981,103040.0,103030.0,0.03256268]
[1763027264275,0.68515981,103040.0,103030.0,0.03256268]
[1763027264449,0.68715981,103040.0,103030.0,0.22668089]
[1763027264653,0.68715981,103040.0,103030.0,0.03256268]
[1763027264880,0.68815981,103040.0,103030.0,0.02125268]
[1763027265235,0.91198066,103040.0,103030.0,0.00225267]
[1763027265658,0.91198066,103040.0,103030.0,0.02125268]
[1763027265861,0.68815981,103040.0,103030.0,0.02125268]
[1763027266067,0.91198066,103040.0,103030.0,0.00225267]
[1763027266308,2.00284269,103040.0,103030.0,0.00225267]
[1763027268017,2.04508269,103040.0,103030.0,1e-08]
[1763027268228,0.19417475,103000.0,102990.0,0.24814335]
[1763027268431,0.19417475,103000.0,102990.0,0.04277554]
[1763027268432,0.8656373,103000.0,102990.0,0.04277554]
[1763027268872,0.19417475,103000.0,102990.0,0.06177555]
[1763027269096,0.44887229,103000.0,102990.0,0.04277554]
[1763027269508,0.44887229,103000.0,102990.0,0.04477554]
[1763027269712,0.44887229,103000.0,102990.0,0.06377555]
[1763027269917,0.44887229,103000.0,102990.0,0.04477554]
[1763027270142,0.44887229,103000.0,102990.0,0.06377555]
[1763027270351,0.23759349,103000.0,102990.0,0.04677554]
[1763027270560,0.23759349,103000.0,102990.0,0.06577555]
[1763027270561,0.74698857,103000.0,102990.0,0.06577555]
[1763027270773,0.74698857,103000.0,102990.0,0.06177555]
[1763027271189,0.74698857,103000.0,102990.0,0.06277555]
[1763027271395,0.74698857,103000.0,102990.0,0.04377554]
[1763027272123,1.16638805,103000.0,102990.0,0.00153554]
[1763027272328,1.20862805,103000.0,102990.0,0.00153554]
[1763027273191,1.17027447,103000.0,102990.0,0.00153554]
[1763027273841,1.17027447,103000.0,102990.0,0.00151321]
[1763027274068,1.17027447,103000.0,102980.0,0.0004]
[1763027274069,0.19419361,102990.0,102980.0,0.0004]
[1763027274282,0.67015106,102990.0,102980.0,0.00044647]
[1763027274701,1.17954614,102990.0,102980.0,0.00044647]
[1763027275364,1.18054614,102990.0,102980.0,0.00044647]
[1763027275570,1.17954614,102990.0,102980.0,0.00044647]
[1763027276212,0.2376312,102980.0,102970.0,0.0004]
[1763027276430,0.2376312,102980.0,102970.0,0.00044664]
[1763027276431,1.16642576,102980.0,102970.0,0.00044664]
[1763027277063,1.18582577,102980.0,102970.0,0.00044664]
[1763027277482,1.22910577,102980.0,102970.0,0.00044664]
[1763027277924,1.23010577,102980.0,102970.0,0.00044664]
[1763027278345,1.18782577,102980.0,102970.0,0.00044664]
[1763027278551,1.23010577,102980.0,102970.0,0.00044664]
[1763027279433,1.18782577,102980.0,102970.0,0.00044664]
[1763027283549,1.09142629,102980.0,102970.0,0.00044664]
[1763027284989,1.09142629,102980.0,102970.0,0.00093566]
[1763027285326,0.58203121,102980.0,102970.0,0.00093566]
[1763027285867,1.09142629,102980.0,102970.0,0.00093566]
[1763027288861,1.92784237,102980.0,102970.0,0.00093566]
[1763027289053,2.02424185,102980.0,102970.0,0.00093566]
[1763027290462,2.06652185,102980.0,102970.0,0.00093566]
[1763027293292,0.23765006,102970.0,102960.0,0.0004]
[1763027293497,1.12659381,102970.0,102960.0,0.00086471]
[1763027293696,1.16887381,102970.0,102960.0,0.00086471]
[1763027294166,1.15575225,102970.0,102960.0,0.00086471]
[1763027294380,0.91325225,102970.0,102960.0,0.00086471]
[1763027294587,0.91425225,102970.0,102960.0,0.00086471]
[1763027295861,0.91425225,102970.0,102960.0,0.01986472]
[1763027296173,0.91425225,102970.0,102960.0,0.00086471]
[1763027296389,0.91425225,102970.0,102960.0,0.01986472]
[1763027296793,0.96025241,102970.0,102960.0,0.01986472]
[1763027297626,0.96025241,102970.0,102960.0,0.00086471]
[1763027298826,0.96025241,102970.0,102960.0,0.00110927]
[1763027300340,0.91425225,102970.0,102960.0,0.00110927]
[1763027300541,0.91425225,102970.0,102960.0,0.02010928]
[1763027300721,0.91425225,102970.0,102960.0,0.00110927]
[1763027301355,1.21337193,102970.0,102960.0,0.00110927]
[1763027301559,0.23766893,102960.0,102950.0,0.0004]
[1763027301713,1.27370745,102960.0,102950.0,0.0004]
[1763027302119,1.27759577,102960.0,102950.0,0.0004]
[1763027302744,1.30452599,102960.0,102950.0,0.0004]
[1763027303116,0.51726906,102950.0,102940.0,0.0004]
[1763027303331,1.19064303,102950.0,102940.0,0.0004]
[1763027303531,1.28704251,102950.0,102940.0,0.0004]
[1763027303776,1.31620492,102950.0,102940.0,0.0004]
[1763027304816,0.51728793,102940.0,102930.0,0.0004]
[1763027305025,0.51728793,102940.0,102930.0,1e-08]
[1763027305026,1.52727593,102940.0,102930.0,1e-08]
[1763027305177,1.59457464,102940.0,102930.0,1e-08]
[1763027305581,1.60823733,102940.0,102930.0,1e-08]
[1763027305836,0.19430681,102930.0,102920.0,1e-08]
[1763027306046,1.2102192,102930.0,102920.0,1e-08]
[1763027306708,0.19434457,102910.0,102900.0,0.00529655]
[1763027306937,1.19065726,102910.0,102900.0,0.00529655]
[1763027307110,0.87783647,102910.0,102900.0,0.00529655]
[1763027307278,0.58400682,102910.0,102900.0,0.00529655]
[1763027307463,0.58400682,102910.0,102900.0,0.00676483]
[1763027308543,0.58352371,102910.0,102900.0,0.00676483]
[1763027308910,0.71211234,102910.0,102900.0,0.00676483]
[1763027310901,1.04399545,102910.0,102900.0,0.00676483]
[1763027311099,1.03511234,102910.0,102900.0,0.00676483]
[1763027311301,1.08630967,102910.0,102900.0,0.00676483]
[1763027311837,1.04398967,102910.0,102900.0,0.04228484]
[1763027312058,1.03511234,102910.0,102900.0,0.04228484]
[1763027312275,1.03511234,102910.0,102900.0,0.02328483]
[1763027312489,0.60740403,102910.0,102900.0,0.02328483]
[1763027312696,1.03511234,102910.0,102900.0,0.02328483]
[1763027312900,1.03511234,102910.0,102900.0,0.00676483]
[1763027313121,1.03511234,102910.0,102900.0,0.02576484]
[1763027313353,1.03511234,102910.0,102900.0,0.04833232]
[1763027313556,1.03511234,102910.0,102900.0,0.07141232]
[1763027313801,1.03511234,102910.0,102900.0,0.02328483]
[1763027314709,0.9916936,102910.0,102900.0,0.02328483]
[1763027314915,1.03511234,102910.0,102900.0,0.06536484]
[1763027315161,0.71211234,102910.0,102900.0,0.04636483]
[1763027316004,0.71211234,102910.0,102900.0,0.02328483]
[1763027316173,0.71211234,102910.0,102900.0,0.01869631]
[1763027316373,0.71211234,102910.0,102900.0,0.00676483]
[1763027317723,1.07743234,102910.0,102900.0,0.00676483]
[1763027317938,1.31993234,102910.0,102900.0,1e-08]
[1763027318160,1.08630002,102910.0,102900.0,1e-08]
[1763027318588,1.04398002,102910.0,102900.0,1e-08]
[1763027319000,1.08634002,102910.0,102900.0,1e-08]
[1763027319207,1.07747234,102910.0,102900.0,1e-08]
[1763027320245,1.18273926,102910.0,102900.0,1e-08]
[1763027320682,1.08633978,102910.0,102900.0,1e-08]
[1763027328918,1.04397978,102910.0,102900.0,1e-08]
[1763027329124,1.00056104,102910.0,102900.0,1e-08]
[1763027329505,1.04397978,102910.0,102900.0,1e-08]
[1763027329704,1.04397978,102910.0,102900.0,0.01900002]
[1763027329850,1.04397978,102910.0,102900.0,1e-08]
[1763027330050,1.04397978,102910.0,102900.0,0.01900002]
[1763027330466,0.67756104,102910.0,102900.0,0.05860002]
[1763027330646,0.69180943,102910.0,102900.0,0.03960001]
[1763027330846,0.69180943,102910.0,102900.0,0.05860002]
[1763027331105,0.69180943,102910.0,102900.0,0.01652001]
[1763027331306,0.69180943,102910.0,102900.0,0.03552002]
[1763027331516,0.02682092,102910.0,102900.0,0.25296347]
[1763027331952,0.02782092,102910.0,102900.0,0.23396346]
[1763027332121,0.02782092,102910.0,102900.0,0.25296347]
[1763027332301,0.02682092,102910.0,102900.0,0.25296347]
[1763027333413,0.02682092,102910.0,102900.0,0.23396346]
[1763027333632,0.02682092,102910.0,102900.0,0.25296347]
[1763027333836,0.02682092,102910.0,102900.0,0.68067178]
[1763027334036,0.01795348,102910.0,102900.0,0.68067178]
[1763027334243,0.02692054,102910.0,102900.0,0.68067178]
[1763027334643,0.02692054,102910.0,102900.0,0.23396346]
[1763027334851,0.00896706,102910.0,102900.0,0.25396347]
[1763027335048,0.62201541,102930.0,102900.0,0.25396347]
[1763027335248,0.62201541,102930.0,102920.0,0.24147569]
[1763027335249,0.02690754,102930.0,102920.0,0.24147569]
[1763027335450,0.02690754,102930.0,102920.0,0.26455569]
[1763027336927,0.02690754,102930.0,102920.0,0.26555569]
[1763027337165,0.00896834,102930.0,102920.0,0.26555569]
[1763027337841,0.00896834,102930.0,102920.0,0.26655569]
[1763027338887,0.01792446,102930.0,102920.0,0.26655569]
[1763027341732,0.01792446,102930.0,102920.0,0.694264]
[1763027341937,0.01792446,102930.0,102920.0,0.26655569]
[1763027342350,0.21223127,102930.0,102920.0,0.24755568]
[1763027342554,0.01792446,102930.0,102920.0,0.26655569]
[1763027343451,0.21223127,102930.0,102920.0,0.24755568]
[1763027343674,0.21223127,102930.0,102920.0,0.26655569]
[1763027344495,0.63993958,102930.0,102920.0,0.03015]
[1763027344724,0.63993958,102930.0,102920.0,0.04915001]
[1763027344936,0.63993958,102930.0,102920.0,0.03015]
[1763027345455,0.62201512,102930.0,102920.0,0.04915001]
[1763027345779,0.62201512,102930.0,102920.0,0.03015]
[1763027345979,0.66543386,102930.0,102920.0,0.04432]
[1763027346186,0.66543386,102930.0,102920.0,0.06332001]
[1763027346692,0.66543386,102930.0,102920.0,0.25334568]
[1763027346895,0.68333439,102930.0,102920.0,0.27234569]
[1763027347097,0.01790053,102930.0,102920.0,0.25334568]
[1763027347310,0.21220734,102930.0,102920.0,0.29615569]
[1763027347713,0.01790053,102930.0,102920.0,0.27715568]
[1763027347912,0.01790053,102930.0,102920.0,0.29515569]
[1763027348116,0.19428843,102940.0,102920.0,0.29515569]
[1763027348322,0.21232175,102940.0,102930.0,0.26481682]
[1763027348958,0.21232175,102940.0,102930.0,0.05151]
[1763027349160,0.21232175,102940.0,102930.0,0.07051001]
[1763027349407,0.64003006,102940.0,102930.0,0.07051001]
[1763027349739,0.64103006,102940.0,102930.0,0.04670001]
[1763027349944,0.64103006,102940.0,102930.0,0.24581681]
[1763027350273,0.44674163,102940.0,102930.0,0.26481682]
[1763027350469,0.64102956,102940.0,102930.0,0.26481682]
[1763027350675,0.64202956,102940.0,102930.0,0.05151]
[1763027351014,0.64202956,102940.0,102930.0,0.22200681]
[1763027351197,0.64202956,102940.0,102930.0,0.24581681]
[1763027351355,0.0021396,102940.0,102930.0,0.26481682]
[1763027352087,0.19642753,102940.0,102930.0,0.26481682]
[1763027352454,0.19442753,102940.0,102930.0,0.26481682]
[1763027352856,0.44937718,102940.0,102930.0,0.26481682]
[1763027355447,0.19442753,102940.0,102930.0,0.26481682]
[1763027355623,0.25508925,102940.0,102930.0,0.24581681]
[1763027355825,0.0001396,102940.0,102930.0,0.26481682]
[1763027356038,0.0001396,102940.0,102930.0,0.51976647]
[1763027356250,0.0001396,102940.0,102930.0,0.26481682]
[1763027356614,0.0001396,102940.0,102930.0,0.21330682]
[1763027356813,0.75745996,102940.0,102930.0,0.04236]
[1763027357380,0.75745996,102940.0,102930.0,0.04436]
[1763027357792,0.75745996,102940.0,102930.0,0.04336]
[1763027357944,0.75845996,102940.0,102930.0,0.04336]
[1763027358610,0.75845996,102940.0,102930.0,0.04236]
[1763027358991,0.24956066,102940.0,102930.0,0.04236]
[1763027359194,0.75945996,102940.0,102930.0,0.04236]
[1763027359396,0.75945996,102940.0,102930.0,0.06136001]
[1763027359594,0.75945996,102940.0,102930.0,0.04236]
[1763027359956,0.75945996,102940.0,102930.0,0.06136001]
[1763027360328,0.75945996,102940.0,102930.0,0.04236]
[1763027361417,0.75945996,102940.0,102930.0,0.06136001]
[1763027362118,0.75945996,102940.0,102930.0,0.04236]
[1763027362900,0.46109157,102940.0,102930.0,0.07006]
[1763027363222,0.46109157,102940.0,102930.0,0.09387]
[1763027363372,0.71604122,102940.0,102930.0,0.11287001]
[1763027363577,0.46109157,102940.0,102930.0,0.11287001]
[1763027363806,0.46109157,102940.0,102930.0,0.30717682]
[1763027364007,0.45137718,102940.0,102930.0,0.30717682]
[1763027365171,0.45137718,102940.0,102930.0,0.11287001]
[1763027365339,0.45137718,102940.0,102930.0,0.09387]
[1763027365537,0.45137718,102940.0,102930.0,0.07006]
[1763027365849,0.45137718,102940.0,102930.0,0.08906001]
[1763027366682,0.70632683,102940.0,102930.0,0.11287001]
[1763027366980,0.70632683,102940.0,102930.0,0.28817681]
[1763027367279,0.70632683,102940.0,102930.0,0.11287001]
[1763027367488,0.70632683,102940.0,102930.0,0.30717682]
[1763027367682,0.45137718,102940.0,102930.0,0.30717682]
[1763027367832,0.45137718,102940.0,102930.0,0.11287001]
[1763027368035,0.45137718,102940.0,102930.0,0.09387]
[1763027368261,0.45137718,102940.0,102930.0,0.11287001]
[1763027368862,0.45137718,102940.0,102930.0,0.09387]
[1763027369042,0.45137718,102940.0,102930.0,0.11287001]
[1763027369255,0.45137718,102940.0,102930.0,0.06136001]
[1763027369595,0.45137718,102940.0,102930.0,0.11287001]
[1763027370588,0.70632683,102940.0,102930.0,0.11287001]
[1763027370786,0.70632683,102940.0,102930.0,0.05436]
[1763027370994,0.70632683,102940.0,102930.0,0.07336001]
[1763027372143,0.19642753,102940.0,102930.0,0.07336001]
[1763027372449,0.70632683,102940.0,102930.0,0.08966001]
[1763027372676,0.70632683,102940.0,102930.0,0.11320001]
[1763027373012,0.86959804,102940.0,102930.0,0.08966001]
[1763027373436,0.86959804,102940.0,102930.0,0.05436]
[1763027374070,0.19642753,102940.0,102930.0,0.07066]
[1763027374278,0.86959804,102940.0,102930.0,0.07066]
[1763027374576,0.86959804,102940.0,102930.0,0.05436]
[1763027374784,0.86959804,102940.0,102930.0,0.07336001]
[1763027375494,0.86959804,102940.0,102930.0,0.05436]
[1763027375672,0.86959804,102940.0,102930.0,0.04236]
[1763027376281,0.86959804,102940.0,102930.0,0.06136001]
[1763027377015,0.64520787,102940.0,102930.0,0.26446681]
[1763027377255,0.0021396,102940.0,102930.0,0.30700682]
[1763027377431,0.0021396,102940.0,102930.0,0.53139699]
[1763027377646,0.0021396,102940.0,102930.0,0.30700682]
[1763027377848,0.0021396,102940.0,102930.0,0.53139699]
[1763027378259,0.0011396,102940.0,102930.0,0.53139699]
[1763027378617,0.0011396,102940.0,102930.0,0.53239699]
[1763027378793,0.0001396,102940.0,102930.0,0.53239699]
[1763027379233,0.0001396,102940.0,102930.0,0.53339699]
[1763027380924,0.0001396,102940.0,102930.0,0.30900682]
[1763027387506,0.0001396,102940.0,102930.0,0.29000681]
[1763027387891,0.0001396,102940.0,102930.0,0.30900682]
[1763027388604,0.0001396,102940.0,102930.0,0.30880682]
[1763027392898,0.24252847,102930.0,102910.0,0.00999999]
[1763027393102,0.19436345,102900.0,102890.0,0.00024482]
[1763027393301,0.70413983,102900.0,102890.0,0.00024482]
[1763027393934,0.74755857,102900.0,102890.0,0.00024482]
[1763027394677,0.23778219,102900.0,102890.0,0.00224482]
[1763027394880,0.74755857,102900.0,102890.0,0.00224482]
[1763027395098,0.74755857,102900.0,102890.0,0.00024482]
[1763027395731,0.25488819,102900.0,102890.0,0.01654482]
[1763027395970,0.44925164,102900.0,102890.0,0.23446717]
[1763027396189,0.44925164,102900.0,102890.0,0.01654482]
[1763027396335,0.70513983,102900.0,102890.0,0.01654482]
[1763027396943,0.51077638,102900.0,102890.0,0.21092717]
[1763027397276,0.51077638,102900.0,102890.0,0.23446717]
[1763027397277,0.25588819,102900.0,102890.0,0.23446717]
[1763027397433,0.51077638,102900.0,102890.0,0.23446717]
[1763027397835,0.51077638,102900.0,102890.0,0.21092717]
[1763027399965,0.25588819,102900.0,102890.0,0.21092717]
[1763027400869,0.45012912,102900.0,102890.0,0.21092717]
[1763027401074,0.45012912,102900.0,102890.0,0.23467717]
[1763027401447,1.54275081,102900.0,102890.0,0.00024482]
[1763027401653,0.23878219,102900.0,102890.0,0.00024482]
[1763027401905,1.58616955,102900.0,102890.0,0.00024482]
[1763027402279,1.90916955,102900.0,102890.0,0.00024482]
[1763027402442,1.95152955,102900.0,102890.0,0.00024482]
[1763027402656,2.0578376,102900.0,102890.0,0.00024482]
[1763027402957,1.21115671,102900.0,102890.0,0.00024482]
[1763027403833,1.2109454,102900.0,102890.0,0.00024482]
[1763027404258,1.11454592,102900.0,102890.0,0.00024482]
[1763027405965,0.19438235,102890.0,102880.0,0.0004]
[1763027406176,0.49789426,102890.0,102880.0,0.00054004]
[1763027406387,0.56083888,102870.0,102860.0,0.0004]
[1763027406590,1.11395339,102870.0,102860.0,0.0004]
[1763027406796,1.11395339,102870.0,102860.0,0.00113468]
[1763027407638,0.56097835,102870.0,102860.0,0.00113468]
[1763027407839,0.81728587,102870.0,102860.0,0.00113468]
[1763027408050,0.81828587,102870.0,102860.0,0.00113468]
[1763027409466,0.56297835,102870.0,102860.0,0.00113468]
[1763027409683,0.49528587,102870.0,102860.0,0.00113468]
[1763027409894,0.54349026,102870.0,102860.0,0.00113468]
[1763027411127,0.79879778,102870.0,102860.0,0.00113468]
[1763027412976,0.7162886,102870.0,102860.0,0.00113468]
[1763027413562,1.0392886,102870.0,102860.0,0.00113468]
[1763027414123,1.13568808,102870.0,102860.0,0.00113468]
[1763027414740,1.0392886,102870.0,102860.0,0.00113468]
[1763027417350,1.0570953,102870.0,102860.0,0.00113468]
[1763027418970,1.0570953,102870.0,102850.0,0.0004]
[1763027418971,0.98896364,102860.0,102850.0,0.0004]
[1763027419137,1.04913034,102860.0,102850.0,0.0004]
[1763027419485,1.04913034,102860.0,102850.0,0.00064495]
[1763027421400,1.04912872,102860.0,102850.0,0.00064495]
[1763027421616,1.1465282,102860.0,102850.0,0.00064495]
[1763027422369,1.1475282,102860.0,102850.0,0.00064495]
[1763027422571,0.53724412,102860.0,102850.0,0.00064495]
[1763027422783,0.96534998,102860.0,102850.0,0.00064495]
[1763027423167,0.21424412,102860.0,102850.0,0.03279495]
[1763027423370,0.96534998,102860.0,102850.0,0.24378289]
[1763027423576,0.96534998,102860.0,102850.0,0.26639289]
[1763027423773,0.64234998,102860.0,102850.0,0.24639289]
[1763027424018,0.64234998,102860.0,102850.0,0.26639289]
[1763027424373,0.68576872,102860.0,102850.0,0.26639289]
[1763027424543,0.01980508,102860.0,102850.0,0.26639289]
[1763027424704,0.01980508,102860.0,102850.0,0.24639289]
[1763027424907,0.01980508,102860.0,102850.0,0.26639289]
[1763027425880,0.01780508,102860.0,102850.0,0.26639289]
[1763027426854,0.01780508,102860.0,102850.0,0.26739289]
[1763027427010,0.01780508,102860.0,102850.0,0.26839289]
[1763027427654,0.01780508,102860.0,102850.0,0.24839289]
[1763027427854,0.01780508,102860.0,102850.0,0.26839289]
[1763027428537,0.21224412,102860.0,102850.0,0.26839289]
[1763027428902,0.01780508,102860.0,102850.0,0.26839289]
[1763027429079,0.01780508,102860.0,102850.0,0.24839289]
[1763027429499,0.01780508,102860.0,102850.0,0.26839289]
[1763027430713,0.21224412,102860.0,102850.0,0.26839289]
[1763027432039,0.01780508,102860.0,102850.0,0.26839289]
[1763027432448,0.21224412,102860.0,102850.0,0.26839289]
[1763027433085,0.64034998,102860.0,102850.0,0.03132495]
[1763027433287,0.64034998,102860.0,102850.0,0.03479495]
[1763027433420,0.68376872,102860.0,102850.0,0.01288244]
[1763027433818,0.68376872,102860.0,102850.0,0.00264495]
[1763027434628,0.25566286,102860.0,102850.0,0.00264495]
[1763027434813,0.68376872,102860.0,102850.0,0.02264495]
[1763027436038,0.68376872,102860.0,102850.0,0.00264495]
[1763027436246,0.68376872,102860.0,102850.0,0.02264495]
[1763027437009,0.68376872,102860.0,102850.0,0.00264495]
[1763027438339,0.68376872,102860.0,102850.0,0.02264495]
[1763027438841,0.68376872,102860.0,102850.0,0.00264495]
[1763027439490,0.68376872,102860.0,102850.0,0.02264495]